bitfinex/quotes_SOLUSD_20240703
["timestamp","ask_amount","ask_price","bid_price","bid_amount"]
[1720028520812,7.0162,142.53,142.5,13.29]
[1720028521006,20.0,142.52,142.44,36.3636]
[1720028521311,7.0183,142.49,142.46,13.29]
[1720028521719,7.0176,142.5,142.47,45.0]
[1720028522516,7.0185,142.48,142.47,45.0]
[1720028522703,17.544,142.5,142.41,54.7965]
[1720028522891,7.0197,142.46,142.42,13.29]
[1720028523699,7.0197,142.46,142.42,7.0214]
[1720028523905,7.0197,142.46,142.41,33.7165]
[1720028524121,7.0197,142.46,142.42,45.0]
[1720028524721,7.0197,142.46,142.41,24.5757]
[1720028524722,20.17,142.45,142.37,15.0982]
[1720028525015,7.022,142.41,142.37,15.0982]
[1720028525405,7.022,142.41,142.36,7.0244]
[1720028525606,15.0073,142.42,142.34,38.6427]
[1720028525830,17.5566,142.4,142.31,35.1186]
[1720028526118,7.024,142.37,142.32,7.0263]
[1720028526293,7.024,142.37,142.33,7.0258]
[1720028526497,7.0236,142.38,142.33,7.0258]
[1720028527016,7.0236,142.38,142.34,7.0254]
[1720028527328,7.0236,142.38,142.35,45.0]
[1720028527619,20.0,142.39,142.35,45.0]
[1720028527825,6.3969,142.41,142.34,45.0]
[1720028527995,27.0225,142.4,142.35,24.5867]
[1720028528191,7.0231,142.39,142.36,45.0]
[1720028528397,7.0231,142.39,142.35,17.562]
[1720028528620,20.0,142.38,142.34,52.0253]
[1720028529226,27.0234,142.38,142.34,52.0253]
[1720028530320,7.0243,142.37,142.32,24.5913]
[1720028530503,7.0243,142.37,142.33,7.0259]
[1720028530707,20.0,142.36,142.33,7.0259]
[1720028530911,7.0235,142.38,142.33,7.0259]
[1720028531092,20.0,142.37,142.33,7.0259]
[1720028531524,27.0239,142.37,142.34,45.0]
[1720028532121,20.0,142.37,142.34,45.0]
[1720028532720,27.0239,142.37,142.33,7.0259]
[1720028532903,20.0,142.37,142.33,7.0259]
[1720028534130,20.0,142.37,142.34,45.0]
[1720028536128,20.0,142.36,142.33,45.0]
[1720028536325,17.5564,142.4,142.33,45.0]
[1720028536531,20.17,142.39,142.33,45.0]
[1720028537304,7.0244,142.36,142.33,45.0]
[1720028537507,7.0241,142.37,142.33,45.0]
[1720028537723,20.0,142.36,142.33,45.0]
[1720028538226,27.0245,142.36,142.33,45.0]
[1720028538611,7.0249,142.35,142.33,45.0]
[1720028538818,7.0249,142.35,142.32,45.0]
[1720028539431,7.0255,142.34,142.32,45.0]
[1720028539607,7.0251,142.35,142.32,45.0]
[1720028539808,7.0251,142.35,142.31,45.0]
[1720028540009,20.0,142.34,142.31,52.0268]
[1720028540221,20.0,142.34,142.29,18.97368105]
[1720028540432,16.6131,142.36,142.3,7.0271]
[1720028540726,7.0258,142.34,142.29,24.5964]
[1720028541235,20.0,142.33,142.26,17.5728]
[1720028541410,7.0271,142.31,142.27,7.0287]
[1720028541736,7.0266,142.32,142.27,7.0287]
[1720028541927,7.0254,142.34,142.29,7.0275]
[1720028542114,27.026,142.33,142.29,7.0275]
[1720028542506,27.026,142.33,142.28,24.5985]
[1720028542834,27.026,142.33,142.29,45.0]
[1720028543826,20.0,142.33,142.29,45.0]
[1720028544139,20.0,142.33,142.3,24.5952]
[1720028544321,7.0254,142.34,142.31,45.0]
[1720028544506,20.0,142.33,142.31,45.0]
[1720028544930,27.0259,142.33,142.31,45.0]
[1720028545414,27.0259,142.33,142.3,45.0]
[1720028545739,20.0,142.33,142.3,45.0]
[1720028547032,27.026,142.33,142.3,45.0]
[1720028547439,7.0264,142.32,142.29,45.0]
[1720028547635,27.026,142.33,142.29,45.0]
[1720028547845,20.0,142.33,142.24,21.13]
[1720028548044,7.028,142.29,142.24,21.13]
[1720028548248,15.1304,142.31,142.25,1.40557736]
[1720028548538,7.028,142.29,142.25,1.40557736]
[1720028548745,7.028,142.29,142.25,7.0298]
[1720028549636,7.028,142.29,142.24,24.6059]
[1720028550436,27.0275,142.3,142.25,7.0295]
[1720028550733,20.0,142.3,142.26,7.0292]
[1720028550936,20.0,142.3,142.27,45.0]
[1720028551529,27.0275,142.3,142.27,45.0]
[1720028551729,27.0275,142.3,142.26,45.0]
[1720028552339,20.0,142.3,142.26,45.0]
[1720028552524,7.0284,142.28,142.24,17.5757]
[1720028552728,7.0279,142.29,142.24,24.6058]
[1720028553639,7.0279,142.29,142.24,45.7358]
[1720028553841,7.0279,142.29,142.25,45.0]
[1720028554633,7.0279,142.29,142.25,52.0298]
[1720028554837,27.0275,142.3,142.25,52.0298]
[1720028555742,27.0275,142.3,142.27,13.31]
[1720028556044,27.0275,142.3,142.28,45.0]
[1720028559440,7.0279,142.29,142.28,45.0]
[1720028559640,27.0279,142.29,142.28,45.0]
[1720028560643,20.0,142.29,142.28,45.0]
[1720028561150,27.0279,142.29,142.28,45.0]
[1720028562155,7.0273,142.31,142.28,45.0]
[1720028562336,20.0,142.3,142.29,13.31]
[1720028562656,27.0274,142.3,142.29,45.0]
[1720028562833,27.0274,142.3,142.26,1.40548325]
[1720028563035,27.0276,142.3,142.28,13.31]
[1720028563253,27.0276,142.3,142.29,45.0]
[1720028565459,7.0282,142.29,142.25,17.5746]
[1720028565643,7.0282,142.29,142.26,45.0]
[1720028567955,7.0282,142.29,142.27,13.31]
[1720028568137,7.0282,142.29,142.28,45.0]
[1720028568775,27.0282,142.29,142.28,45.0]
[1720028574739,7.0283,142.28,142.25,17.5746]
[1720028575051,27.028,142.29,142.26,13.31]
[1720028575444,27.028,142.29,142.25,17.5746]
[1720028575445,27.0279,142.29,142.25,24.6044]
[1720028575656,27.0279,142.29,142.27,13.31]
[1720028577461,20.0,142.29,142.27,13.31]
[1720028577656,20.0,142.29,142.28,45.0]
[1720028578061,27.0279,142.29,142.28,45.0]
[1720028579265,20.0,142.29,142.28,45.0]
[1720028581064,27.0279,142.29,142.28,45.0]
[1720028581657,7.0284,142.28,142.25,13.31]
[1720028581853,20.0,142.29,142.27,13.31]
[1720028582059,7.0269,142.31,142.28,58.31]
[1720028582248,29.5056,142.34,142.29,8.43262408]
[1720028582249,23.2213,142.34,142.29,8.43262408]
[1720028582567,7.0259,142.33,142.31,13.31]
[1720028582753,7.0259,142.33,142.32,45.0]
[1720028583449,7.0259,142.33,142.31,45.0]
[1720028584669,7.0259,142.33,142.31,58.31]
[1720028584864,23.2212,142.34,142.31,58.31]
[1720028585246,7.0245,142.36,142.33,13.31]
[1720028587542,40.09517988,142.38,142.31,58.31]
[1720028587543,7.0254,142.34,142.31,58.31]
[1720028588146,21.1182,142.38,142.33,13.31]
[1720028588360,21.1182,142.38,142.35,13.31]
[1720028588564,28.1416,142.38,142.36,45.0]
[1720028589479,21.1182,142.38,142.36,58.31]
[1720028589782,20.0,142.37,142.36,58.31]
[1720028590849,20.0,142.37,142.36,45.0]
[1720028591152,20.0,142.37,142.35,58.31]
[1720028592246,7.0233,142.39,142.36,13.31]
[1720028592578,20.0,142.38,142.37,45.0]
[1720028594373,20.0,142.38,142.36,58.31]
[1720028595673,20.0,142.39,142.37,13.31]
[1720028595857,36.71410172,142.41,142.38,58.31]
[1720028596170,7.0221,142.41,142.39,58.31]
[1720028596378,7.0221,142.41,142.39,13.31]
[1720028597168,20.0,142.4,142.38,13.31]
[1720028597368,20.0,142.4,142.39,45.0]
[1720028597872,27.0224,142.4,142.39,45.0]
[1720028599674,7.0249,142.35,142.31,17.5661]
[1720028599880,13.31,142.37,142.28,17.5701]
[1720028600054,7.0255,142.34,142.32,13.31]
[1720028600261,7.025,142.35,142.32,13.31]
[1720028600582,7.0245,142.36,142.32,13.31]
[1720028601477,7.0245,142.36,142.33,45.0]
[1720028602596,7.0253,142.35,142.33,45.0]
[1720028602778,7.0246,142.36,142.33,45.0]
[1720028603079,7.024,142.37,142.33,58.31]
[1720028603455,20.0,142.36,142.33,65.3359]
[1720028603659,20.0,142.36,142.33,58.31]
[1720028605666,7.025,142.35,142.33,45.0]
[1720028606172,7.0246,142.36,142.33,45.0]
[1720028606573,7.0246,142.36,142.32,45.0]
[1720028606882,7.0246,142.36,142.32,58.31]
[1720028607389,40.3341,142.37,142.32,65.3363]
[1720028607563,27.0241,142.37,142.33,13.31]
[1720028608183,7.0245,142.36,142.33,13.31]
[1720028609488,20.0,142.37,142.34,13.31]
[1720028609670,20.0,142.37,142.35,13.31]
[1720028609874,20.0,142.37,142.35,20.3348]
[1720028610092,29.86800172,142.4,142.36,58.31]
[1720028610294,7.0226,142.4,142.37,13.31]
[1720028610483,23.997,142.43,142.37,20.3339]
[1720028610484,7.0221,142.41,142.37,20.3339]
[1720028610673,7.0221,142.41,142.37,13.31]
[1720028611473,7.0225,142.4,142.37,13.31]
[1720028611674,20.0,142.39,142.37,13.31]
[1720028612792,7.022,142.41,142.37,13.31]
[1720028612991,20.0,142.4,142.37,13.31]
[1720028613297,20.0,142.4,142.37,14.34013702]
[1720028613888,27.0225,142.4,142.37,13.31]
[1720028615700,27.0225,142.4,142.36,45.0]
[1720028615995,27.0225,142.4,142.37,13.31]
[1720028616368,7.0229,142.39,142.37,13.31]
[1720028617189,27.0226,142.4,142.37,13.31]
[1720028617697,20.0,142.4,142.39,13.31]
[1720028617877,20.0,142.4,142.39,58.31]
[1720028619303,7.0211,142.43,142.39,58.31]
[1720028619609,6.79690172,142.44,142.4,58.31]
[1720028619610,20.0,142.42,142.4,58.31]
[1720028619777,6.79690172,142.44,142.4,58.31]
[1720028620107,7.0198,142.46,142.43,13.31]
[1720028620310,45.15647211,142.49,142.44,58.31]
[1720028620311,7.0191,142.47,142.44,58.31]
[1720028621084,6.298,142.51,142.39,21.13]
[1720028621394,7.0197,142.46,142.42,13.31]
[1720028621594,7.0197,142.46,142.43,58.31]
[1720028621790,7.02,142.45,142.43,58.31]
[1720028622202,7.0195,142.46,142.43,58.31]
[1720028623788,7.019,142.47,142.44,13.31]
[1720028623983,7.019,142.47,142.45,45.0]
[1720028624184,20.0,142.46,142.45,45.0]
[1720028626902,27.0195,142.46,142.45,45.0]
[1720028629404,20.0,142.46,142.45,45.0]
[1720028630916,27.0195,142.46,142.45,45.0]
[1720028631606,20.0,142.46,142.45,58.31]
[1720028631812,7.0176,142.5,142.46,7.0194]
[1720028632019,13.31,142.53,142.48,13.31]
[1720028632221,7.0172,142.51,142.48,13.31]
[1720028632512,7.0172,142.51,142.49,45.0]
[1720028632721,37.1632,142.54,142.49,58.31]
[1720028632899,7.017,142.51,142.49,58.31]
[1720028633098,20.0,142.5,142.49,58.31]
[1720028633415,20.0,142.5,142.45,17.5487]
[1720028633709,7.0181,142.49,142.47,13.31]
[1720028633911,7.0181,142.49,142.48,45.0]
[1720028634109,7.0194,142.47,142.43,15.3069]
[1720028634305,7.0194,142.47,142.43,13.31]
[1720028635211,7.0194,142.47,142.43,20.3309]
[1720028635603,20.3286,142.48,142.44,45.0]
[1720028636200,7.0191,142.47,142.44,45.0]
[1720028636704,7.0191,142.47,142.43,58.31]
[1720028636705,20.0,142.46,142.43,58.31]
[1720028639335,20.0,142.46,142.43,65.3309]
[1720028640206,20.0,142.46,142.43,52.0209]
[1720028644102,13.31,142.45,142.43,52.0209]
[1720028645820,13.31,142.45,142.43,45.0]
[1720028646127,13.31,142.44,142.42,24.5744]
[1720028646723,13.31,142.44,142.43,7.0209]
[1720028647227,13.31,142.45,142.43,7.0209]
[1720028647802,13.31,142.45,142.42,24.5743]
[1720028648229,13.31,142.45,142.43,7.0209]
[1720028650329,13.31,142.45,142.42,24.5743]
[1720028651128,20.0,142.47,142.42,17.553]
[1720028651429,33.31,142.47,142.44,7.0203]
[1720028654743,13.31,142.46,142.43,52.0208]
[1720028654946,13.31,142.45,142.43,52.0208]
[1720028655240,13.31,142.45,142.43,45.0]
[1720028655448,13.31,142.44,142.42,17.553]
[1720028656031,13.31,142.43,142.42,17.553]
[1720028656244,13.31,142.43,142.42,62.553]
[1720028657546,13.31,142.43,142.42,69.5744]
[1720028658545,13.31,142.44,142.42,69.5744]
[1720028658858,13.31,142.44,142.43,7.0209]
[1720028659044,13.31,142.45,142.43,7.0209]
[1720028661958,27.0191,142.47,142.43,7.0209]
[1720028662149,13.31,142.45,142.43,7.0209]
[1720028665256,13.31,142.45,142.42,69.5743]
[1720028665958,13.31,142.44,142.42,69.5743]
[1720028670254,20.0,142.47,142.42,45.0]
[1720028670463,13.31,142.43,142.41,45.0]
[1720028670640,13.31,142.42,142.41,45.0]
[1720028671258,13.31,142.42,142.4,24.5781]
[1720028671564,13.31,142.41,142.38,24.5818]
[1720028671766,13.31,142.4,142.38,24.5818]
[1720028672967,13.31,142.4,142.39,45.0]
[1720028673356,13.31,142.4,142.38,17.5585]
[1720028673557,7.0215,142.42,142.35,17.5617]
[1720028673558,13.31,142.39,142.35,17.5617]
[1720028673740,13.31,142.38,142.35,17.5617]
[1720028674144,13.31,142.38,142.36,7.0244]
[1720028676255,6.0856,142.42,142.35,17.5617]
[1720028676256,13.31,142.37,142.35,17.5617]
[1720028676455,13.31,142.36,142.35,17.5617]
[1720028676663,13.31,142.36,142.33,7.0259]
[1720028676848,13.31,142.35,142.33,7.0259]
[1720028678170,13.31,142.35,142.32,24.5921]
[1720028678753,13.31,142.35,142.33,45.0]
[1720028679066,7.024,142.37,142.33,45.0]
[1720028679289,13.31,142.35,142.33,52.0259]
[1720028679575,13.31,142.35,142.33,45.0]
[1720028680478,7.024,142.37,142.33,45.0]
[1720028680655,13.31,142.35,142.33,45.0]
[1720028681159,13.31,142.34,142.29,68.4836]
[1720028681369,20.0,142.36,142.3,45.0]
[1720028681370,13.31,142.33,142.3,45.0]
[1720028681862,13.31,142.33,142.31,7.0268]
[1720028682175,13.31,142.32,142.3,7.0272]
[1720028683276,13.31,142.32,142.29,24.5963]
[1720028683479,7.0254,142.34,142.29,24.5963]
[1720028683775,13.31,142.32,142.3,7.0273]
[1720028684260,20.0,142.33,142.31,7.0269]
[1720028684583,13.31,142.32,142.31,7.0269]
[1720028684766,13.31,142.32,142.31,52.0269]
[1720028685165,13.31,142.32,142.31,45.0]
[1720028685359,13.31,142.32,142.3,7.0273]
[1720028687753,13.31,142.32,142.29,17.5686]
[1720028687950,13.31,142.32,142.3,45.0]
[1720028689704,13.31,142.31,142.3,45.0]
[1720028689900,7.026,142.33,142.29,24.5964]
[1720028690119,13.31,142.32,142.3,52.0272]
[1720028690608,13.31,142.32,142.3,45.0]
[1720028691503,13.31,142.31,142.3,45.0]
[1720028692493,13.31,142.31,142.29,24.5962]
[1720028692693,13.31,142.31,142.29,17.5686]
[1720028693618,13.31,142.31,142.29,24.5964]
[1720028699099,13.31,142.3,142.29,24.5964]
[1720028699295,13.31,142.31,142.29,69.5964]
[1720028699500,13.31,142.31,142.28,7.0282]
[1720028700315,13.31,142.3,142.23,21.9788404]
[1720028700507,13.31,142.29,142.24,79.78]
[1720028700818,13.31,142.3,142.24,79.78]
[1720028701118,13.31,142.3,142.24,79.44]
[1720028701311,13.31,142.29,142.27,7.0288]
[1720028701905,13.31,142.29,142.26,7.0291]
[1720028702209,0.17,142.34,142.27,63.97738384]
[1720028702405,13.31,142.31,142.28,7.028]
[1720028703201,53.9174,142.35,142.29,7.0278]
[1720028703396,13.31,142.32,142.29,7.0278]
[1720028703608,20.0,142.31,142.28,7.0281]
[1720028703808,33.31,142.31,142.29,45.0]
[1720028704021,20.0,142.31,142.29,45.0]
[1720028704224,20.0,142.31,142.27,24.6004]
[1720028704225,13.31,142.3,142.28,45.0]
[1720028705618,20.0,142.31,142.28,52.0282]
[1720028705825,33.31,142.31,142.28,52.0282]
[1720028706334,33.31,142.31,142.28,45.0]
[1720028706535,13.31,142.3,142.28,45.0]
[1720028709333,13.31,142.29,142.28,45.0]
[1720028709632,13.31,142.29,142.26,7.0292]
[1720028709829,13.31,142.29,142.27,45.0]
[1720028710933,20.0,142.31,142.24,24.6054]
[1720028710934,36.5675,142.31,142.24,24.6054]
[1720028711117,13.31,142.28,142.24,24.6054]
[1720028712210,13.31,142.28,142.25,45.0]
[1720028712416,20.3384,142.28,142.25,45.0]
[1720028713227,49.8775,142.31,142.22,15.219]
[1720028713228,20.3389,142.27,142.22,15.219]
[1720028713428,20.3389,142.27,142.22,7.0312]
[1720028713613,20.3389,142.27,142.23,7.8796404]
[1720028713815,7.0286,142.28,142.23,7.8796404]
[1720028714029,13.31,142.27,142.24,0.39698824]
[1720028714236,13.31,142.27,142.24,1.35054281]
[1720028714621,13.31,142.27,142.24,8.38084281]
[1720028714938,13.31,142.27,142.24,1.35054281]
[1720028715113,13.31,142.27,142.24,46.35054281]
[1720028715528,20.3389,142.27,142.24,45.0]
[1720028716338,7.0289,142.27,142.24,45.0]
[1720028716539,20.3389,142.27,142.24,45.0]
[1720028717020,7.0289,142.27,142.24,45.0]
[1720028717221,20.3389,142.27,142.24,45.0]
[1720028717626,7.0294,142.26,142.24,45.0]
[1720028717821,7.0294,142.26,142.23,45.8488404]
[1720028718332,13.31,142.26,142.23,45.8488404]
[1720028718516,33.6503,142.24,142.23,0.8488404]
[1720028718830,73.5803,142.24,142.23,0.8488404]
[1720028719041,93.5803,142.24,142.23,0.8488404]
[1720028719439,93.5803,142.24,142.14,17.5873]
[1720028719440,17.5788,142.22,142.14,17.5873]
[1720028719624,17.5788,142.22,142.14,24.6223]
[1720028719625,13.31,142.17,142.14,24.6223]
[1720028720134,20.0,142.21,142.14,17.5873]
[1720028720443,13.31,142.18,142.15,7.0347]
[1720028721325,13.31,142.16,142.13,17.589]
[1720028721527,15.5234,142.19,142.09,0.8488404]
[1720028721528,13.31,142.14,142.09,0.8488404]
[1720028721729,7.0353,142.14,142.09,7.8865404]
[1720028721927,13.31,142.12,142.1,7.0372]
[1720028722121,30.8949,142.17,142.1,7.0372]
[1720028722122,13.31,142.13,142.1,7.0372]
[1720028722341,7.0351,142.15,142.1,7.0372]
[1720028722531,13.31,142.13,142.09,25.4803404]
[1720028722732,13.31,142.13,142.09,0.8488404]
[1720028723045,7.0354,142.14,142.09,7.8865404]
[1720028723238,13.31,142.12,142.09,7.8865404]
[1720028724054,13.31,142.12,142.09,0.8488404]
[1720028724353,13.31,142.1,142.09,0.8488404]
[1720028725453,20.3472,142.1,142.09,0.8488404]
[1720028725646,13.31,142.1,142.09,0.8488404]
[1720028726235,20.3472,142.1,142.09,0.8488404]
[1720028726455,40.2112,142.1,142.09,0.8488404]
[1720028726649,100.1412,142.1,142.09,0.8488404]
[1720028727044,100.1412,142.1,141.99,7.0425]
[1720028727045,7.0407,142.04,141.99,7.0425]
[1720028727244,13.31,142.02,141.99,7.0425]
[1720028727466,13.31,142.02,141.98,32.9718]
[1720028727467,17.5957,142.08,141.98,32.9718]
[1720028727630,59.794,142.1,141.99,13.31]
[1720028727631,20.0,142.07,141.99,13.31]
[1720028727971,6.554,142.1,142.03,17.6014]
[1720028728174,13.31,142.05,141.98,15.3643]
[1720028728338,13.31,142.04,142.02,7.0411]
[1720028728536,13.31,142.03,142.01,7.0416]
[1720028728754,7.0384,142.08,142.03,7.0407]
[1720028728931,13.31,142.05,142.02,24.6441]
[1720028729130,13.31,142.04,142.02,24.6441]
[1720028729364,7.0389,142.07,142.02,7.0411]
[1720028729872,6.554,142.1,142.03,62.6016]
[1720028730050,13.31,142.06,142.03,69.642]
[1720028730247,13.31,142.05,142.03,69.642]
[1720028730443,13.31,142.04,142.03,69.642]
[1720028730657,13.31,142.04,142.01,7.0417]
[1720028730962,13.31,142.03,142.01,7.0417]
[1720028731673,13.31,142.03,142.0,24.6474]
[1720028731830,13.31,142.03,142.01,45.0]
[1720028732035,17.5946,142.09,142.01,45.0]
[1720028732036,13.31,142.02,142.01,45.0]
[1720028732462,6.1306,142.01,141.94,0.8488404]
[1720028732743,13.31,141.96,141.94,0.8488404]
[1720028733271,13.31,141.95,141.94,0.8488404]
[1720028733771,7.0433,141.98,141.94,0.8488404]
[1720028733976,7.0429,141.99,141.94,7.8939404]
[1720028734180,7.0432,141.98,141.94,7.8940404]
[1720028734483,7.0428,141.99,141.94,7.8939404]
[1720028734776,7.0436,141.98,141.94,0.8488404]
[1720028735276,26.75,142.0,141.94,0.8488404]
[1720028735486,7.0436,141.98,141.94,0.8488404]
[1720028735776,7.0437,141.97,141.94,0.8488404]
[1720028736161,26.75,142.0,141.94,0.8488404]
[1720028736357,7.0439,141.97,141.94,0.8488404]
[1720028736682,7.0433,141.98,141.94,0.8488404]
[1720028736849,7.0437,141.97,141.94,0.8488404]
[1720028737183,7.0442,141.96,141.94,0.8488404]
[1720028737351,26.75,142.0,141.94,0.8488404]
[1720028737552,26.75,142.0,141.94,7.8938404]
[1720028737753,7.0433,141.98,141.94,0.8488404]
[1720028738059,31.79690172,142.06,141.94,21.9788404]
[1720028738060,49.3465,142.04,141.94,21.9788404]
[1720028738260,7.0414,142.02,141.97,7.0433]
[1720028738467,7.0414,142.02,141.98,7.0432]
[1720028738650,7.0419,142.01,141.98,45.0]
[1720028738979,22.5965,142.04,141.98,17.6075]
[1720028739176,7.0412,142.02,141.99,45.0]
[1720028739355,7.0419,142.01,141.99,45.0]
[1720028739681,7.0419,142.01,141.96,7.0441]
[1720028739975,7.0422,142.0,141.97,45.0]
[1720028740278,7.0422,142.0,141.96,45.0]
[1720028740667,7.0419,142.01,141.96,52.0442]
[1720028740973,7.0427,142.0,141.96,45.0]
[1720028741173,44.3538,142.02,141.95,45.0]
[1720028741477,7.0432,141.98,141.95,45.0]
[1720028741681,26.75,142.01,141.95,45.0]
[1720028741974,26.75,142.01,141.94,0.8488404]
[1720028741975,7.0437,141.97,141.94,0.8488404]
[1720028742183,7.0434,141.98,141.94,0.8488404]
[1720028742519,7.0437,141.97,141.94,0.8488404]
[1720028742784,20.0,141.96,141.94,0.8488404]
[1720028742983,7.0434,141.98,141.94,0.8488404]
[1720028743153,20.0,141.97,141.94,0.8488404]
[1720028743555,20.0,141.97,141.94,45.8488404]
[1720028743862,7.0445,141.96,141.94,0.8488404]
[1720028744166,20.0,141.97,141.94,0.8488404]
[1720028744167,7.0447,141.95,141.94,0.8488404]
[1720028744778,41.4864,141.97,141.94,0.8488404]
[1720028745482,7.0443,141.96,141.94,0.8488404]
[1720028746858,7.0447,141.95,141.94,0.8488404]
[1720028747786,27.0447,141.95,141.94,0.8488404]
[1720028748077,20.0,141.95,141.94,0.8488404]
[1720028749762,27.0447,141.95,141.94,0.8488404]
[1720028751476,20.0,141.95,141.9,0.04175776]
[1720028751684,7.0467,141.91,141.9,0.04175776]
[1720028751865,7.0463,141.92,141.9,0.04175776]
[1720028752692,7.0457,141.93,141.9,0.04175776]
[1720028752873,7.0463,141.92,141.9,0.04175776]
[1720028753070,7.0458,141.93,141.9,0.04175776]
[1720028753568,7.0462,141.92,141.9,0.04175776]
[1720028755289,27.0453,141.94,141.9,7.08885776]
[1720028755472,7.0439,141.97,141.92,7.0461]
[1720028755796,20.414,141.97,141.92,38.031]
[1720028755968,13.37,141.93,141.91,45.0]
[1720028756295,7.0462,141.92,141.9,0.04175776]
[1720028756479,13.37,141.92,141.9,0.04175776]
[1720028756878,20.4162,141.92,141.9,0.04175776]
[1720028757274,7.0457,141.93,141.9,0.04175776]
[1720028757472,20.4167,141.91,141.9,0.04175776]
[1720028757690,7.0467,141.91,141.9,0.04175776]
[1720028757992,20.4167,141.91,141.9,0.04175776]
[1720028758795,7.0467,141.91,141.9,0.04175776]
[1720028758966,20.4167,141.91,141.9,0.04175776]
[1720028759474,13.37,141.91,141.9,0.04175776]
[1720028759688,22.0691,141.93,141.9,0.04175776]
[1720028759887,13.37,141.92,141.9,0.04175776]
[1720028760299,13.3706,141.95,141.9,7.08875776]
[1720028760468,13.37,141.93,141.9,0.04175776]
[1720028760672,20.0,141.92,141.9,45.04175776]
[1720028760977,20.0,141.92,141.9,52.08875776]
[1720028761295,13.37,141.96,141.91,17.6157]
[1720028761467,15.8833,141.97,141.91,17.6157]
[1720028761667,15.8833,141.97,141.92,45.0]
[1720028761668,13.37,141.96,141.92,45.0]
[1720028761879,6.5743,141.99,141.92,45.0]
[1720028762198,16.1737,142.0,141.93,17.6139]
[1720028762397,13.37,141.98,141.94,45.0]
[1720028762700,6.5743,142.02,141.96,7.0442]
[1720028762701,13.37,141.99,141.96,7.0442]
[1720028762875,6.5743,142.02,141.97,45.0]
[1720028762876,20.4123,142.0,141.97,45.0]
[1720028763186,20.4123,142.0,141.96,7.0441]
[1720028763398,7.0413,142.02,141.97,7.0436]
[1720028763565,7.0418,142.01,141.98,45.0]
[1720028763767,15.772,142.03,141.94,7.045]
[1720028763768,13.37,141.99,141.94,7.045]
[1720028763983,7.0418,142.01,141.97,7.0436]
[1720028764325,7.0406,142.04,141.99,7.0426]
[1720028764622,13.37,142.02,142.0,45.0]
[1720028764810,7.0404,142.04,142.0,45.0]
[1720028765005,13.37,142.04,142.01,7.0417]
[1720028765186,13.37,142.04,142.0,62.6053]
[1720028765187,7.0383,142.08,142.03,7.0405]
[1720028765388,13.37,142.08,142.04,7.0402]
[1720028765613,13.37,142.08,142.05,45.0]
[1720028765821,7.0379,142.09,142.05,45.0]
[1720028765991,7.0383,142.08,142.05,45.0]